[Event "Late-Titled-Tuesday-Blitz-April-16-2024"]
[Site "Chess.com"]
[Date "2024.04.16"]
[Round "3"]
[White "AlejandroArias"]
[Black "Jimonios"]
[Result "0-1"]
[WhiteElo "2418"]
[BlackElo "2616"]
[TimeControl "180+1"]
[EndTime "14:27:14 PDT"]
[Termination "Jimonios won on time"]

1. e3 {[%clk 0:03:00.9]} 1... Nf6 {[%clk 0:02:56.6]} 2. Nf3 {[%clk 0:02:59.6]}
2... b6 {[%clk 0:02:56.9]} 3. d4 {[%clk 0:02:58.2]} 3... Bb7 {[%clk 0:02:57.4]}
4. Bd3 {[%clk 0:02:55.9]} 4... d6 {[%clk 0:02:56.4]} 5. c4 {[%clk 0:02:55.4]}
5... Nbd7 {[%clk 0:02:56.8]} 6. O-O {[%clk 0:02:54.4]} 6... e5 {[%clk
0:02:56.9]} 7. Be2 {[%clk 0:02:47.6]} 7... g6 {[%clk 0:02:56]} 8. Nc3 {[%clk
0:02:46.6]} 8... Bg7 {[%clk 0:02:56.2]} 9. Re1 {[%clk 0:02:42.7]} 9... O-O
{[%clk 0:02:56.1]} 10. Qc2 {[%clk 0:02:39.9]} 10... a5 {[%clk 0:02:56.3]} 11. b3
{[%clk 0:02:27.9]} 11... Qe7 {[%clk 0:02:48.6]} 12. Bb2 {[%clk 0:02:26.5]} 12...
Rae8 {[%clk 0:02:48.6]} 13. a3 {[%clk 0:02:20.4]} 13... Nh5 {[%clk 0:02:48.2]}
14. Nd5 {[%clk 0:02:07.4]} 14... Qd8 {[%clk 0:02:44.4]} 15. b4 {[%clk
0:02:04.2]} 15... f5 {[%clk 0:02:28]} 16. bxa5 {[%clk 0:02:00.2]} 16... bxa5
{[%clk 0:02:27.7]} 17. Bc3 {[%clk 0:01:58.8]} 17... c6 {[%clk 0:02:26.9]} 18.
dxe5 {[%clk 0:01:28.7]} 18... dxe5 {[%clk 0:02:22.7]} 19. Qd2 {[%clk 0:01:18.2]}
19... cxd5 {[%clk 0:02:22.1]} 20. Bxa5 {[%clk 0:01:17.3]} 20... Qa8 {[%clk
0:02:21.5]} 21. cxd5 {[%clk 0:01:16.5]} 21... Nhf6 {[%clk 0:02:21.6]} 22. Bb4
{[%clk 0:01:12.6]} 22... Rf7 {[%clk 0:02:20.9]} 23. Ng5 {[%clk 0:01:09.8]} 23...
Ne4 {[%clk 0:02:19.7]} 24. Nxe4 {[%clk 0:01:06.3]} 24... fxe4 {[%clk 0:02:20.6]}
25. Red1 {[%clk 0:01:04.2]} 25... h5 {[%clk 0:02:16.9]} 26. Bb5 {[%clk
0:01:02.1]} 26... Rd8 {[%clk 0:02:12.8]} 27. a4 {[%clk 0:00:12.7]} 27... Nf6
{[%clk 0:02:10.1]} 28. a5 {[%clk 0:00:12.5]} 28... Rxd5 {[%clk 0:02:08.9]} 29.
Qe2 {[%clk 0:00:12.8]} 29... Ng4 {[%clk 0:02:08.6]} 30. Be1 {[%clk 0:00:11.9]}
30... Rxd1 {[%clk 0:02:01]} 31. Rxd1 {[%clk 0:00:11.6]} 31... Bf8 {[%clk
0:01:54.4]} 32. Bc4 {[%clk 0:00:11.1]} 32... Nh6 {[%clk 0:01:50.2]} 33. Rd7
{[%clk 0:00:10.6]} 33... Bc6 {[%clk 0:01:49.5]} 34. Rxf7 {[%clk 0:00:10.4]}
34... Nxf7 {[%clk 0:01:50.4]} 35. Qa2 {[%clk 0:00:10.7]} 35... Be8 {[%clk
0:01:49.7]} 36. a6 {[%clk 0:00:10.4]} 36... Bc5 {[%clk 0:01:49.7]} 37. Bc3
{[%clk 0:00:08.9]} 37... Kg7 {[%clk 0:01:47.1]} 38. h3 {[%clk 0:00:07.5]} 38...
Qa7 {[%clk 0:01:44.5]} 39. Bxf7 {[%clk 0:00:06.2]} 39... Bxf7 {[%clk 0:01:45.4]}
40. Bxe5+ {[%clk 0:00:06.6]} 40... Kg8 {[%clk 0:01:46]} 41. Qb2 {[%clk
0:00:06.1]} 41... Qxa6 {[%clk 0:01:45.2]} 42. Qb8+ {[%clk 0:00:06.1]} 42... Bf8
{[%clk 0:01:45.7]} 43. Qd8 {[%clk 0:00:03.5]} 43... Qe6 {[%clk 0:01:43.9]} 44.
Bd4 {[%clk 0:00:03.3]} 44... Qd6 {[%clk 0:01:43.6]} 45. Qa5 {[%clk 0:00:02.2]}
45... Bd5 {[%clk 0:01:43.8]} 46. Qd2 {[%clk 0:00:01.9]} 46... Qa6 {[%clk
0:01:42.4]} 47. Qc3 {[%clk 0:00:02.7]} 47... Bd6 {[%clk 0:01:40.8]} 48. Bh8
{[%clk 0:00:02.7]} 48... Qb7 {[%clk 0:01:39.6]} 49. Qd4 {[%clk 0:00:03.2]} 49...
Qb1+ {[%clk 0:01:38.8]} 0-1

[Event "Late-Titled-Tuesday-Blitz-April-16-2024"]
[Site "Chess.com"]
[Date "2024.04.16"]
[Round "3"]
[White "noblerone"]
[Black "combidharma"]
[Result "0-1"]
[WhiteElo "2496"]
[BlackElo "2823"]
[TimeControl "180+1"]
[EndTime "14:27:15 PDT"]
[Termination "combidharma won on time"]

1. d4 {[%clk 0:02:54.1]} 1... Nf6 {[%clk 0:02:58.3]} 2. Nf3 {[%clk 0:02:52.6]}
2... c5 {[%clk 0:02:57.3]} 3. e3 {[%clk 0:02:50.5]} 3... cxd4 {[%clk 0:02:50.9]}
4. exd4 {[%clk 0:02:51.4]} 4... g6 {[%clk 0:02:50.2]} 5. Bd3 {[%clk 0:02:44.8]}
5... Bg7 {[%clk 0:02:48.2]} 6. O-O {[%clk 0:02:44.2]} 6... d5 {[%clk 0:02:49.1]}
7. h3 {[%clk 0:02:44.4]} 7... O-O {[%clk 0:02:49.2]} 8. Bf4 {[%clk 0:02:30.7]}
8... Nc6 {[%clk 0:02:49.3]} 9. c3 {[%clk 0:02:30.6]} 9... a6 {[%clk 0:02:37.8]}
10. a4 {[%clk 0:02:28.2]} 10... Ne8 {[%clk 0:02:37.3]} 11. Re1 {[%clk
0:02:15.2]} 11... Nd6 {[%clk 0:02:37]} 12. Nbd2 {[%clk 0:02:14.8]} 12... Rb8
{[%clk 0:02:23.4]} 13. b4 {[%clk 0:01:50.9]} 13... Bf5 {[%clk 0:02:05.8]} 14.
Bxd6 {[%clk 0:01:40.1]} 14... Qxd6 {[%clk 0:02:00.7]} 15. Bxf5 {[%clk
0:01:39.4]} 15... gxf5 {[%clk 0:02:01.6]} 16. a5 {[%clk 0:01:26.6]} 16... Rfc8
{[%clk 0:01:59]} 17. Nb3 {[%clk 0:01:25.6]} 17... e6 {[%clk 0:01:57]} 18. Nc5
{[%clk 0:01:24.6]} 18... Na7 {[%clk 0:01:45.4]} 19. Rc1 {[%clk 0:01:23.6]} 19...
Nb5 {[%clk 0:01:45.6]} 20. Ne5 {[%clk 0:01:21.1]} 20... Qe7 {[%clk 0:01:33.1]}
21. Qh5 {[%clk 0:01:10.6]} 21... Nd6 {[%clk 0:01:29.8]} 22. Ned7 {[%clk
0:00:36]} 22... Kh8 {[%clk 0:01:00.1]} 23. Nxb8 {[%clk 0:00:34.9]} 23... Rxb8
{[%clk 0:01:01]} 24. f3 {[%clk 0:00:23.3]} 24... Rg8 {[%clk 0:00:59.6]} 25. Nd3
{[%clk 0:00:21.5]} 25... Bf6 {[%clk 0:00:52]} 26. Ne5 {[%clk 0:00:17.3]} 26...
Rg5 {[%clk 0:00:51.6]} 27. Qh6 {[%clk 0:00:07.8]} 27... Bg7 {[%clk 0:00:51.4]}
28. Qxg5 {[%clk 0:00:01.9]} 28... Qxg5 {[%clk 0:00:50.9]} 29. c4 {[%clk
0:00:02.6]} 29... Bxe5 {[%clk 0:00:49.2]} 30. dxe5 {[%clk 0:00:02.1]} 30... Nxc4
{[%clk 0:00:49.5]} 0-1

[Event "Late-Titled-Tuesday-Blitz-April-16-2024"]
[Site "Chess.com"]
[Date "2024.04.16"]
[Round "3"]
[White "jcibarra"]
[Black "Rutricks"]
[Result "1-0"]
[WhiteElo "2922"]
[BlackElo "2692"]
[TimeControl "180+1"]
[EndTime "14:27:18 PDT"]
[Termination "jcibarra won by resignation"]

1. d4 {[%clk 0:02:59.6]} 1... g6 {[%clk 0:02:59.4]} 2. Nc3 {[%clk 0:02:56.6]}
2... Bg7 {[%clk 0:03:00]} 3. Bf4 {[%clk 0:02:55.3]} 3... a6 {[%clk 0:02:59.1]}
4. e4 {[%clk 0:02:49.8]} 4... b5 {[%clk 0:02:59.2]} 5. Nf3 {[%clk 0:02:43.9]}
5... Bb7 {[%clk 0:02:59.7]} 6. Bd3 {[%clk 0:02:44.2]} 6... d6 {[%clk 0:03:00]}
7. e5 {[%clk 0:02:41]} 7... e6 {[%clk 0:02:59.8]} 8. Qe2 {[%clk 0:02:34.6]} 8...
Ne7 {[%clk 0:02:56.8]} 9. Ne4 {[%clk 0:02:34.1]} 9... Bxe4 {[%clk 0:02:47.9]}
10. Bxe4 {[%clk 0:02:30.9]} 10... d5 {[%clk 0:02:48]} 11. Bd3 {[%clk 0:02:30.5]}
11... Nd7 {[%clk 0:02:47.1]} 12. h4 {[%clk 0:02:29.3]} 12... h6 {[%clk
0:02:46.4]} 13. c3 {[%clk 0:02:29.4]} 13... c5 {[%clk 0:02:44]} 14. Kf1 {[%clk
0:02:21.6]} 14... Qb6 {[%clk 0:02:40.6]} 15. Rd1 {[%clk 0:02:20]} 15... Rc8
{[%clk 0:02:35.1]} 16. g3 {[%clk 0:02:19.3]} 16... c4 {[%clk 0:01:51.4]} 17. Bc2
{[%clk 0:02:17.6]} 17... Kd8 {[%clk 0:01:51.4]} 18. h5 {[%clk 0:02:11.3]} 18...
g5 {[%clk 0:01:49.7]} 19. Be3 {[%clk 0:02:09.7]} 19... f5 {[%clk 0:01:30.3]} 20.
exf6 {[%clk 0:02:06.4]} 20... Bxf6 {[%clk 0:01:30.8]} 21. Nh2 {[%clk 0:02:04.8]}
21... Nf5 {[%clk 0:01:28.4]} 22. Ng4 {[%clk 0:02:03.6]} 22... Bg7 {[%clk
0:01:29]} 23. Kg2 {[%clk 0:02:00.7]} 23... Kc7 {[%clk 0:01:26.6]} 24. Rhe1
{[%clk 0:01:59.2]} 24... Rce8 {[%clk 0:01:27.1]} 25. Bc1 {[%clk 0:01:52.2]}
25... Rhf8 {[%clk 0:01:18.7]} 26. b3 {[%clk 0:01:45.8]} 26... Qc6 {[%clk
0:01:17.2]} 27. bxc4 {[%clk 0:01:44.5]} 27... bxc4 {[%clk 0:01:14.8]} 28. Ba3
{[%clk 0:01:42.7]} 28... Rf7 {[%clk 0:01:15.2]} 29. Rb1 {[%clk 0:01:37.5]} 29...
Bf8 {[%clk 0:01:13.1]} 30. Bxf8 {[%clk 0:01:34.5]} 30... Rexf8 {[%clk 0:01:14]}
31. Qxe6 {[%clk 0:01:30.5]} 31... Nd6 {[%clk 0:00:46.7]} 32. Qxh6 {[%clk
0:01:20.6]} 32... Qa8 {[%clk 0:00:33.2]} 33. Re6 {[%clk 0:01:13.9]} 33... Nb5
{[%clk 0:00:33.3]} 34. Rxa6 {[%clk 0:01:05.5]} 34... Qb7 {[%clk 0:00:33.9]} 35.
Ba4 {[%clk 0:00:49.5]} 35... Rf6 {[%clk 0:00:08.9]} 36. Nxf6 {[%clk 0:00:47.7]}
36... Qa7 {[%clk 0:00:09.4]} 37. Rxa7+ {[%clk 0:00:47.4]} 1-0

[Event "Late-Titled-Tuesday-Blitz-April-16-2024"]
[Site "Chess.com"]
[Date "2024.04.16"]
[Round "3"]
[White "Denmark2015"]
[Black "LuisFSiles"]
[Result "1/2-1/2"]
[WhiteElo "2582"]
[BlackElo "2388"]
[TimeControl "180+1"]
[EndTime "14:27:19 PDT"]
[Termination "Game drawn by repetition"]

1. d4 {[%clk 0:03:00.9]} 1... Nf6 {[%clk 0:02:59.6]} 2. c4 {[%clk 0:03:00.6]}
2... g6 {[%clk 0:02:59.9]} 3. Nc3 {[%clk 0:03:00.5]} 3... d5 {[%clk 0:03:00.5]}
4. cxd5 {[%clk 0:02:59.8]} 4... Nxd5 {[%clk 0:03:01.4]} 5. e4 {[%clk 0:02:59.7]}
5... Nxc3 {[%clk 0:03:01.3]} 6. bxc3 {[%clk 0:03:00.6]} 6... Bg7 {[%clk
0:03:01.4]} 7. Qa4+ {[%clk 0:03:00.8]} 7... c6 {[%clk 0:02:55.5]} 8. Nf3 {[%clk
0:02:59.7]} 8... O-O {[%clk 0:02:54.6]} 9. Be3 {[%clk 0:02:57.4]} 9... b5 {[%clk
0:02:54.7]} 10. Qa3 {[%clk 0:02:48.8]} 10... a5 {[%clk 0:02:54]} 11. Be2 {[%clk
0:02:37.8]} 11... Na6 {[%clk 0:02:54]} 12. Rd1 {[%clk 0:02:32.3]} 12... b4
{[%clk 0:02:53.3]} 13. Qc1 {[%clk 0:02:21]} 13... c5 {[%clk 0:02:41.4]} 14. O-O
{[%clk 0:01:59.3]} 14... Qc7 {[%clk 0:02:38]} 15. Rfe1 {[%clk 0:01:32.6]} 15...
cxd4 {[%clk 0:02:36.1]} 16. cxd4 {[%clk 0:01:19.3]} 16... Qb7 {[%clk 0:02:33.1]}
17. e5 {[%clk 0:00:55.1]} 17... Be6 {[%clk 0:02:24.3]} 18. Qd2 {[%clk
0:00:47.3]} 18... Bd5 {[%clk 0:02:21.2]} 19. Bh6 {[%clk 0:00:39.2]} 19... Rfc8
{[%clk 0:02:17.6]} 20. Bxg7 {[%clk 0:00:38.7]} 20... Kxg7 {[%clk 0:02:18.5]} 21.
Rc1 {[%clk 0:00:27.7]} 21... Rxc1 {[%clk 0:02:03.8]} 22. Rxc1 {[%clk 0:00:27.3]}
22... Rc8 {[%clk 0:02:04.5]} 23. Ne1 {[%clk 0:00:20.4]} 23... Rxc1 {[%clk
0:01:44]} 24. Qxc1 {[%clk 0:00:21.3]} 24... Bxa2 {[%clk 0:01:44.2]} 25. Qa1
{[%clk 0:00:18.1]} 25... b3 {[%clk 0:01:43.2]} 26. Qb2 {[%clk 0:00:17.7]} 26...
Nb4 {[%clk 0:01:38]} 27. Nd3 {[%clk 0:00:14.7]} 27... Nxd3 {[%clk 0:01:37.7]}
28. Bxd3 {[%clk 0:00:15.6]} 28... Qb4 {[%clk 0:01:35.3]} 29. Kf1 {[%clk
0:00:14.2]} 29... a4 {[%clk 0:01:35.7]} 30. e6 {[%clk 0:00:11.4]} 30... a3
{[%clk 0:01:34.7]} 31. Qe2 {[%clk 0:00:08.5]} 31... Qxd4 {[%clk 0:01:31.7]} 32.
g3 {[%clk 0:00:08.1]} 32... b2 {[%clk 0:01:30]} 33. exf7 {[%clk 0:00:08.3]}
33... b1=Q+ {[%clk 0:01:25.1]} 34. Bxb1 {[%clk 0:00:08.3]} 34... Bxb1 {[%clk
0:01:26]} 35. Qxe7 {[%clk 0:00:08.6]} 35... Qc4+ {[%clk 0:01:13.4]} 36. Kg1
{[%clk 0:00:06.5]} 36... Qxf7 {[%clk 0:01:14.3]} 37. Qe5+ {[%clk 0:00:05.8]}
37... Qf6 {[%clk 0:01:09.1]} 38. Qc7+ {[%clk 0:00:05.8]} 38... Kh6 {[%clk
0:01:08]} 39. Qc1+ {[%clk 0:00:05.4]} 39... Kg7 {[%clk 0:01:03.5]} 40. Qxb1
{[%clk 0:00:06.3]} 40... Qb2 {[%clk 0:01:03.5]} 41. Qe4 {[%clk 0:00:05.3]} 41...
a2 {[%clk 0:01:03.7]} 42. Qe7+ {[%clk 0:00:05.5]} 42... Kh6 {[%clk 0:01:02.5]}
43. Qh4+ {[%clk 0:00:05.6]} 43... Kg7 {[%clk 0:01:02.8]} 44. Qe7+ {[%clk
0:00:06.5]} 44... Kh6 {[%clk 0:01:02.7]} 45. Qh4+ {[%clk 0:00:06.6]} 45... Kg7
{[%clk 0:01:03.2]} 46. Qe7+ {[%clk 0:00:07.5]} 1/2-1/2

[Event "Late-Titled-Tuesday-Blitz-April-16-2024"]
[Site "Chess.com"]
[Date "2024.04.16"]
[Round "3"]
[White "Lady_Nika"]
[Black "KaydenTroffChess"]
[Result "0-1"]
[WhiteElo "2499"]
[BlackElo "2865"]
[TimeControl "180+1"]
[EndTime "14:27:22 PDT"]
[Termination "KaydenTroffChess won by checkmate"]

1. e4 {[%clk 0:03:00.9]} 1... c5 {[%clk 0:02:59.9]} 2. Nf3 {[%clk 0:02:58.5]}
2... g6 {[%clk 0:02:59.3]} 3. g3 {[%clk 0:02:57.3]} 3... Bg7 {[%clk 0:02:59.3]}
4. Bg2 {[%clk 0:02:57.7]} 4... Nc6 {[%clk 0:02:59.7]} 5. O-O {[%clk 0:02:58.1]}
5... d6 {[%clk 0:02:55.8]} 6. Nc3 {[%clk 0:02:58.2]} 6... Rb8 {[%clk 0:02:55.9]}
7. a4 {[%clk 0:02:56.8]} 7... Nf6 {[%clk 0:02:55.4]} 8. Re1 {[%clk 0:02:56.3]}
8... O-O {[%clk 0:02:54.9]} 9. h3 {[%clk 0:02:54.4]} 9... a6 {[%clk 0:02:55]}
10. d3 {[%clk 0:02:53.4]} 10... b5 {[%clk 0:02:55.2]} 11. axb5 {[%clk
0:02:52.9]} 11... axb5 {[%clk 0:02:56.1]} 12. Ne2 {[%clk 0:02:52.2]} 12... b4
{[%clk 0:02:56.1]} 13. Nd2 {[%clk 0:02:47.3]} 13... Be6 {[%clk 0:02:49.8]} 14.
f4 {[%clk 0:02:44.9]} 14... d5 {[%clk 0:02:45.2]} 15. e5 {[%clk 0:02:43.4]}
15... Nd7 {[%clk 0:02:39.9]} 16. c3 {[%clk 0:02:43.2]} 16... bxc3 {[%clk
0:02:38.9]} 17. bxc3 {[%clk 0:02:44.1]} 17... Qc7 {[%clk 0:02:15.5]} 18. Ba3
{[%clk 0:02:41.8]} 18... Rfd8 {[%clk 0:02:11.9]} 19. d4 {[%clk 0:02:38]} 19...
Na5 {[%clk 0:02:10.3]} 20. Kh2 {[%clk 0:02:31.4]} 20... Nc4 {[%clk 0:02:03.2]}
21. Nxc4 {[%clk 0:02:30.9]} 21... dxc4 {[%clk 0:02:04.1]} 22. d5 {[%clk
0:02:30.6]} 22... Nb6 {[%clk 0:02:03.8]} 23. Qc2 {[%clk 0:02:05.6]} 23... Nxd5
{[%clk 0:01:57.3]} 24. Ng1 {[%clk 0:02:04.9]} 24... Rb3 {[%clk 0:01:55]} 25. Bb2
{[%clk 0:01:58.4]} 25... Rdb8 {[%clk 0:01:52]} 26. Ra2 {[%clk 0:01:57.6]} 26...
Qb6 {[%clk 0:01:47.4]} 27. Ba1 {[%clk 0:01:57.3]} 27... Bh6 {[%clk 0:01:44.5]}
28. Nf3 {[%clk 0:01:38.2]} 28... Rb1 {[%clk 0:01:40.1]} 29. Rxb1 {[%clk
0:01:33.2]} 29... Qxb1 {[%clk 0:01:41]} 30. Qa4 {[%clk 0:01:32.1]} 30... Nxf4
{[%clk 0:01:36.7]} 31. Nd2 {[%clk 0:00:38.3]} 31... Qe1 {[%clk 0:01:24.6]} 32.
Nf3 {[%clk 0:00:17.1]} 32... Qe3 {[%clk 0:01:09.1]} 33. Qc6 {[%clk 0:00:12.4]}
33... Nxg2 {[%clk 0:01:04.7]} 34. Kxg2 {[%clk 0:00:11.3]} 34... Qd3 {[%clk
0:01:03.6]} 35. Qxc5 {[%clk 0:00:09.6]} 35... Bd5 {[%clk 0:01:03.6]} 36. Rf2
{[%clk 0:00:09.3]} 36... Be3 {[%clk 0:00:59.5]} 37. Qc7 {[%clk 0:00:06.3]} 37...
Bxf3+ {[%clk 0:00:59.7]} 38. Rxf3 {[%clk 0:00:05.7]} 38... Qe2+ {[%clk 0:01:00]}
39. Kh1 {[%clk 0:00:04.9]} 39... Rb1+ {[%clk 0:01:00]} 40. Rf1 {[%clk
0:00:04.7]} 40... Rxf1# {[%clk 0:01:00.6]} 0-1

[Event "Late-Titled-Tuesday-Blitz-April-16-2024"]
[Site "Chess.com"]
[Date "2024.04.16"]
[Round "3"]
[White "dvglko"]
[Black "GAO"]
[Result "1-0"]
[WhiteElo "2517"]
[BlackElo "2297"]
[TimeControl "180+1"]
[EndTime "14:27:22 PDT"]
[Termination "dvglko won by resignation"]

1. e4 {[%clk 0:03:00.9]} 1... c5 {[%clk 0:02:59.3]} 2. Nf3 {[%clk 0:03:01.2]}
2... Nc6 {[%clk 0:02:59.2]} 3. Bb5 {[%clk 0:03:01.7]} 3... g6 {[%clk 0:02:57.5]}
4. O-O {[%clk 0:03:00.2]} 4... Bg7 {[%clk 0:02:57.4]} 5. c3 {[%clk 0:03:00.8]}
5... Nf6 {[%clk 0:02:56.4]} 6. Re1 {[%clk 0:03:01.1]} 6... O-O {[%clk
0:02:56.2]} 7. d4 {[%clk 0:02:58]} 7... d5 {[%clk 0:02:56.4]} 8. exd5 {[%clk
0:02:52.7]} 8... Nxd5 {[%clk 0:02:51.5]} 9. dxc5 {[%clk 0:02:49.3]} 9... Bg4
{[%clk 0:02:48.3]} 10. h3 {[%clk 0:02:41.3]} 10... Bxf3 {[%clk 0:02:46.8]} 11.
Qxf3 {[%clk 0:02:42.2]} 11... e6 {[%clk 0:02:45.4]} 12. Bxc6 {[%clk 0:02:32.9]}
12... bxc6 {[%clk 0:02:46.3]} 13. Nd2 {[%clk 0:02:11.6]} 13... a5 {[%clk
0:02:36.9]} 14. Ne4 {[%clk 0:01:58.1]} 14... a4 {[%clk 0:02:30.3]} 15. Bg5
{[%clk 0:01:54.1]} 15... Qa5 {[%clk 0:02:25.8]} 16. c4 {[%clk 0:01:33.7]} 16...
Nb4 {[%clk 0:02:25.4]} 17. Bd2 {[%clk 0:01:09.8]} 17... Bxb2 {[%clk 0:01:23.5]}
18. a3 {[%clk 0:01:08.8]} 18... Bxa1 {[%clk 0:01:21.5]} 19. Bxb4 {[%clk
0:01:08.1]} 19... Qa6 {[%clk 0:01:17.1]} 20. Rxa1 {[%clk 0:01:07.7]} 20... f5
{[%clk 0:01:17.1]} 21. Nd6 {[%clk 0:01:03.9]} 21... e5 {[%clk 0:01:14.1]} 22.
Re1 {[%clk 0:00:59.5]} 22... e4 {[%clk 0:01:12.1]} 23. Qc3 {[%clk 0:00:57.9]}
23... Qa7 {[%clk 0:01:05.8]} 24. Qe3 {[%clk 0:00:36.5]} 24... Rad8 {[%clk
0:00:55.9]} 25. Bc3 {[%clk 0:00:35.7]} 25... Rd7 {[%clk 0:00:55.4]} 26. Qd4
{[%clk 0:00:35.7]} 26... Rg7 {[%clk 0:00:47]} 27. Qxg7+ {[%clk 0:00:35]} 27...
Qxg7 {[%clk 0:00:47.9]} 28. Bxg7 {[%clk 0:00:35.5]} 28... Kxg7 {[%clk
0:00:48.8]} 29. Rb1 {[%clk 0:00:36]} 29... Kf6 {[%clk 0:00:48]} 30. Rb6 {[%clk
0:00:32]} 30... Ke5 {[%clk 0:00:46.8]} 31. Rxc6 {[%clk 0:00:32.5]} 31... Rb8
{[%clk 0:00:47.3]} 32. Nb5 {[%clk 0:00:28.2]} 32... Rd8 {[%clk 0:00:46.3]} 33.
Rd6 {[%clk 0:00:27.9]} 33... Rc8 {[%clk 0:00:46.6]} 34. c6 {[%clk 0:00:20.4]}
34... f4 {[%clk 0:00:45.8]} 35. c7 {[%clk 0:00:18]} 35... e3 {[%clk 0:00:44]}
36. fxe3 {[%clk 0:00:15.4]} 36... fxe3 {[%clk 0:00:43.1]} 37. Rd8 {[%clk
0:00:15.7]} 37... e2 {[%clk 0:00:42]} 38. Kf2 {[%clk 0:00:15]} 1-0

[Event "Late-Titled-Tuesday-Blitz-April-16-2024"]
[Site "Chess.com"]
[Date "2024.04.16"]
[Round "3"]
[White "Karttunen"]
[Black "ChadBiryani"]
[Result "1-0"]
[WhiteElo "2696"]
[BlackElo "2473"]
[TimeControl "180+1"]
[EndTime "14:27:23 PDT"]
[Termination "Karttunen won on time"]

1. d4 {[%clk 0:03:00.9]} 1... f5 {[%clk 0:02:59.1]} 2. Nc3 {[%clk 0:02:57.5]}
2... Nf6 {[%clk 0:02:57.1]} 3. Bg5 {[%clk 0:02:55.3]} 3... d5 {[%clk 0:02:54.1]}
4. Bxf6 {[%clk 0:02:55.5]} 4... exf6 {[%clk 0:02:53.9]} 5. e3 {[%clk 0:02:55.5]}
5... Be6 {[%clk 0:02:53.3]} 6. Bd3 {[%clk 0:02:52.7]} 6... g6 {[%clk 0:02:44.7]}
7. Nge2 {[%clk 0:02:48.3]} 7... c6 {[%clk 0:02:42.7]} 8. b3 {[%clk 0:02:30.2]}
8... a5 {[%clk 0:02:25.7]} 9. O-O {[%clk 0:02:15.2]} 9... h5 {[%clk 0:02:00.9]}
10. Na4 {[%clk 0:02:12.3]} 10... Nd7 {[%clk 0:01:58.2]} 11. c4 {[%clk
0:02:12.2]} 11... Bd6 {[%clk 0:01:44.9]} 12. Nac3 {[%clk 0:02:06.1]} 12... O-O
{[%clk 0:01:39.1]} 13. cxd5 {[%clk 0:01:55.3]} 13... cxd5 {[%clk 0:01:35.9]} 14.
g3 {[%clk 0:01:55.1]} 14... Rc8 {[%clk 0:01:34.4]} 15. Rc1 {[%clk 0:01:52.5]}
15... Qe7 {[%clk 0:01:29.1]} 16. Nf4 {[%clk 0:01:49.7]} 16... Bf7 {[%clk
0:01:29.1]} 17. Ncxd5 {[%clk 0:01:44.8]} 17... Bxd5 {[%clk 0:01:27.2]} 18. Nxd5
{[%clk 0:01:45.7]} 18... Qg7 {[%clk 0:01:24.6]} 19. Qf3 {[%clk 0:01:42.2]} 19...
Ba3 {[%clk 0:01:19.2]} 20. Rxc8 {[%clk 0:01:39.1]} 20... Rxc8 {[%clk 0:01:20.1]}
21. Bc4 {[%clk 0:01:38.6]} 21... Kh7 {[%clk 0:01:18]} 22. Nf4 {[%clk 0:01:33.5]}
22... Nf8 {[%clk 0:00:56.8]} 23. Qd5 {[%clk 0:01:27.8]} 23... Bb4 {[%clk
0:00:48.1]} 24. a4 {[%clk 0:01:25.9]} 24... Rc7 {[%clk 0:00:47.1]} 25. Rd1
{[%clk 0:01:25.5]} 25... h4 {[%clk 0:00:20.4]} 26. Kg2 {[%clk 0:01:10.8]} 26...
g5 {[%clk 0:00:17.2]} 27. Qxf5+ {[%clk 0:01:09.9]} 27... Kh6 {[%clk 0:00:16.3]}
28. Nd5 {[%clk 0:01:06.5]} 28... Rc6 {[%clk 0:00:14.3]} 29. Rg1 {[%clk
0:00:59.1]} 29... Ng6 {[%clk 0:00:12.1]} 30. Kh1 {[%clk 0:00:58.2]} 30... b6
{[%clk 0:00:09.8]} 31. Qf3 {[%clk 0:00:56.1]} 31... Rd6 {[%clk 0:00:08]} 32. Be2
{[%clk 0:00:52.3]} 32... Kh7 {[%clk 0:00:07.7]} 33. Nxb4 {[%clk 0:00:49.8]}
33... axb4 {[%clk 0:00:07.8]} 34. Rc1 {[%clk 0:00:49.9]} 34... Ne7 {[%clk
0:00:05.8]} 35. Rc7 {[%clk 0:00:45.5]} 35... g4 {[%clk 0:00:04.1]} 36. Qe4+
{[%clk 0:00:44.7]} 1-0

[Event "Late-Titled-Tuesday-Blitz-April-16-2024"]
[Site "Chess.com"]
[Date "2024.04.16"]
[Round "3"]
[White "DanielDardha2005"]
[Black "TangerineandLemon25"]
[Result "1-0"]
[WhiteElo "2869"]
[BlackElo "2604"]
[TimeControl "180+1"]
[EndTime "14:27:30 PDT"]
[Termination "DanielDardha2005 won on time"]

1. d4 {[%clk 0:03:00.9]} 1... d5 {[%clk 0:02:59.1]} 2. Qd3 {[%clk 0:02:53.7]}
2... g6 {[%clk 0:02:53.6]} 3. e4 {[%clk 0:02:50.5]} 3... dxe4 {[%clk 0:02:51.8]}
4. Qxe4 {[%clk 0:02:50.8]} 4... Bg7 {[%clk 0:02:52.7]} 5. Nf3 {[%clk 0:02:48.2]}
5... Nf6 {[%clk 0:02:52.7]} 6. Qh4 {[%clk 0:02:47.9]} 6... O-O {[%clk
0:02:51.2]} 7. Bh6 {[%clk 0:02:47.5]} 7... Bf5 {[%clk 0:02:49.9]} 8. Na3 {[%clk
0:02:34.8]} 8... Ne4 {[%clk 0:01:52.8]} 9. Bd3 {[%clk 0:02:21.3]} 9... Nd6
{[%clk 0:01:49.2]} 10. Ng5 {[%clk 0:02:18.3]} 10... Bxd3 {[%clk 0:01:35.9]} 11.
Bxg7 {[%clk 0:02:17]} 11... Kxg7 {[%clk 0:01:36.5]} 12. Qxh7+ {[%clk 0:01:51.5]}
12... Kf6 {[%clk 0:01:36]} 13. Qh4 {[%clk 0:01:51]} 13... Nf5 {[%clk 0:01:12.3]}
14. Qf4 {[%clk 0:01:36]} 14... Qxd4 {[%clk 0:01:03.1]} 15. Qxd4+ {[%clk
0:01:33]} 15... Nxd4 {[%clk 0:01:04]} 16. Nh7+ {[%clk 0:01:33.6]} 16... Kg7
{[%clk 0:01:04.3]} 17. Nxf8 {[%clk 0:01:34.2]} 17... Bxc2 {[%clk 0:00:34.1]} 18.
Rc1 {[%clk 0:01:23.6]} 18... Bf5 {[%clk 0:00:18.1]} 19. Nxg6 {[%clk 0:01:11.8]}
19... Kxg6 {[%clk 0:00:18.3]} 20. Rxc7 {[%clk 0:01:12.7]} 20... Nbc6 {[%clk
0:00:18.4]} 21. Rxb7 {[%clk 0:01:11.2]} 21... Rd8 {[%clk 0:00:19]} 22. f3 {[%clk
0:01:05.4]} 22... Ne6 {[%clk 0:00:16.7]} 23. Nc4 {[%clk 0:00:57.6]} 23... Nf4
{[%clk 0:00:16.4]} 24. Rc7 {[%clk 0:00:51.7]} 24... Nb4 {[%clk 0:00:13.3]} 25.
O-O {[%clk 0:00:44.8]} 25... Bd3 {[%clk 0:00:11.7]} 26. Ne5+ {[%clk 0:00:44.5]}
26... Kf6 {[%clk 0:00:11.4]} 27. Nxd3 {[%clk 0:00:41]} 27... Nbxd3 {[%clk
0:00:12.3]} 28. g3 {[%clk 0:00:35.5]} 28... Ne2+ {[%clk 0:00:07.2]} 29. Kg2
{[%clk 0:00:36]} 29... Rg8 {[%clk 0:00:07.8]} 30. Rd1 {[%clk 0:00:31.1]} 30...
Ne5 {[%clk 0:00:03.1]} 31. Kf2 {[%clk 0:00:29.4]} 1-0